Cogmind - Beta 13 @@@ ROGUE MODE // 2024.04.06 @ 22:49:29 Player: Cyurio Result: Destroyed by as-77577 with Assembled Blade Performance ------------- Evolutions (0) 0 Regions Visited (2) 400 Robots Destroyed (25) 125 Value Destroyed (579) 579 Prototype IDs (0) 0 Alien Tech Used (0) 0 Bonus (0) 0 TOTAL SCORE: 1104 Bonus ------- None Cogmind --------- Core Integrity 0/250 Matter 254/300 Energy 84/100 System Corruption 9% Temperature Cool (25) Movement Treading (240) Ox1 Location -10/Mines Parts ------- > --- POWER (1) -------- (None) > --- PROPULSION (2) --- Light Treads > --- UTILITY (2) ------ Large Storage Unit > --- WEAPON (2) ------- EM Pulse Gun Light Assault Rifle > --- INVENTORY (15) --- Light Ion Engine Light Ion Engine Light Treads Compact Wheel Medium Storage Unit Signal Interpreter Shield Generator Tractor Beam Peak State ------------ > --- POWER ------------ Ion Engine > --- PROPULSION ------- Light Treads Light Treads > --- UTILITY ---------- Large Storage Unit Shield Generator > --- WEAPON ----------- Light Assault Rifle Light Cannon > --- INVENTORY -------- Light Ion Engine Light Ion Engine Light Treads Light Treads Compact Wheel Medium Storage Unit Signal Interpreter Shield Generator EM Pulse Gun [Rating: 9] Favorites ----------- Power Ion Engine Engine Ion Engine Propulsion Light Treads Treads Light Treads Leg Aluminum Leg Utility Shield Generator Device Shield Generator Storage Small Storage Unit Weapon Light Assault Rifle Energy Gun EM Pulse Gun Ballistic Gun Light Assault Rifle Ballistic Cannon Light Cannon Build | -11 -10 -10 ------- Run | Yrd Mat Min Slots Evolved . | . . . Power . | . . . Propulsion . | . . . Utility . | . . . Weapon . | . . . Parts Attached 12 | . 10 2 Power 1 | . 1 . Engine 1 | . 1 . Core . | . . . Reactor . | . . . Propulsion 4 | . 3 1 Treads 4 | . 3 1 Leg . | . . . Wheel . | . . . Hover . | . . . Flight . | . . . Utility 4 | . 4 . Device 2 | . 2 . Storage 2 | . 2 . Processor . | . . . Hackware . | . . . Protection . | . . . Artifact . | . . . Weapon 3 | . 2 1 Energy Gun 1 | . . 1 Energy Cannon . | . . . Ballistic Gun 1 | . 1 . Ballistic Cannon 1 | . 1 . Launcher . | . . . Special Weapon . | . . . Impact Weapon . | . . . Slashing Weapon . | . . . Piercing Weapon . | . . . Special Melee Weapon . | . . . Unidentified Prototypes . | . . . Parts Lost 6 | . 1 5 Power 1 | . . 1 Propulsion 2 | . . 2 Utility 2 | . 1 1 Weapon 1 | . . 1 Highest Loss Streak 5 | . 1 5 To Critical Strikes . | . . . Average Slot Usage (%) 97 | . 97 98 Engine 14 | . 14 14 Treads 27 | . 28 27 Device 12 | . 11 13 Storage 14 | . 14 14 Ballistic Gun 19 | . 21 14 Ballistic Cannon 8 | . 6 14 Naked Turns . | . . . Heaviest Build 31 | 11 31 31 Greatest Support 40 | 20 40 40 Greatest Overweight (x) . | . . . Average Overweight (x) . | . . . Largest Inventory Capacity 15 | . 15 15 Average Capacity 10 | . 9 15 Most Carried 10 | . 9 10 Average Carried 8 | . 7 9 Final Capacity 15 | 8 15 15 Final Carried 9 | 6 9 8 Class Distribution -------------------- 100% | Mutant Dominant Class ---------------- Mutant | -10/Materials Mutant | -10/Mines Resources | -11 -10 -10 ----------- Run | Yrd Mat Min Matter Collected 564 | 200 289 75 Remotely . | . . . Salvage Created 803 | . 653 150 Parts 58 | . 49 9 Haulers Intercepted 1 | . 1 . Recyclers Shooed . | . . . Parts Field Recycled . | . . . Retrieved Matter . | . . . Parts Self-Destructed . | . . . Prevented . | . . . Kills | -11 -10 -10 ------- Run | Yrd Mat Min Combat Hostiles Destroyed 27 | . 19 8 Guns 17 | . 14 3 Cannons 10 | . 5 5 Classes Destroyed 6 | . 4 2 Hauler 1 | . 1 . Recycler 1 | . . 1 Operator 1 | . 1 . Swarmer 9 | . 6 3 Grunt 13 | . 13 . Assembled 5 | . . 5 Best Kill Streak 6 | . 6 5 Combat Bots Only 6 | . 6 5 Max Kills in Single Turn 1 | . 1 1 Gunslinging . | . . . Exploded . | . . . Melee . | . . . Uniques/NPCs Destroyed . | . . . Combat | -11 -10 -10 -------- Run | Yrd Mat Min Hostile Shots Fired 153 | . 112 41 Missed 39 | . 28 11 Damage Taken 954 | . 606 348 Core 252 | . 147 105 Absorbed by Shields 317 | . 230 87 Core Remaining (%) 100 | 100 . . Volleys Fired 89 | . 64 25 Largest 2 | . 2 2 Hottest 55 | . 55 55 Shots Fired 179 | . 128 51 Gun 132 | . 106 26 Cannon 47 | . 22 25 Launcher . | . . . Special . | . . . Kinetic 179 | . 128 51 Thermal . | . . . Explosive . | . . . Electromagnetic . | . . . Robot Hit Streak 13 | . 13 7 Robot Miss Streak 7 | . 3 7 Penetration Max . | . . . Secondary Targets . | . . . Shots Hit Robots 110 | . 84 26 Core Hits 61 | . 43 18 Critical Kills 1 | . 1 . Critical Parts Destroyed . | . . . Critical Strikes 2 | . 1 1 Destroy 1 | . 1 . Blast 1 | . . 1 Melee Attacks . | . . . Impact . | . . . Slashing . | . . . Piercing . | . . . Sneak Attacks . | . . . Combat Hostiles . | . . . Follow-up Attacks . | . . . Damage Inflicted 1154 | . 816 338 Guns 693 | . 586 107 Cannons 454 | . 230 224 Explosions . | . . . Melee . | . . . Ramming 7 | . . 7 Kinetic 1147 | . 816 331 Thermal . | . . . Explosive . | . . . Electromagnetic . | . . . Impact . | . . . Slashing . | . . . Piercing . | . . . Highest Corruption 9 | . . 9 Average Corruption 3 | . . 3 Corruption Purged . | . . . Corruption Blocked . | . . . Effects 1 | . . 1 Misfires 1 | . . 1 Overload Shots . | . . . Overflow Damage 3 | . 3 . Projectiles 3 | . 3 . Explosions . | . . . Melee . | . . . Knockbacks 9 | . 5 4 Impact . | . . . Kinetic 8 | . 4 4 Secondary 1 | . 1 . Self-Inflicted Damage . | . . . Shots . | . . . Rammed 2 | . . 2 Targets Rammed 2 | . . 2 Kicked . | . . . Crushed . | . . . Highest Temperature 85 | . 38 85 Average Temperature 21 | . 12 31 Received Heat Transfer 283 | . 196 87 Siege Activations . | . . . Robots Corrupted . | . . . Combat Hostiles . | . . . Parts Fried . | . . . Impact Corruptions . | . . . Robots Melted . | . . . Combat Hostiles . | . . . Parts Melted . | . . . Heat Transferred . | . . . Parts Sabotaged . | . . . Parts Stolen . | . . . Parts Stripped . | . . . Power Chain Reactions . | . . . Alert | -11 -10 -10 ------- Run | Yrd Mat Min Peak Influence 305 | . 305 189 Initial 114 | . . 114 Average 150 | . 145 168 Maximum Alert Level 1 | . 1 . Low Security (%) 73 | . 66 100 Level 1 26 | . 33 . Level 2 . | . . . Level 3 . | . . . Level 4 . | . . . Level 5 . | . . . High Security . | . . . Max Security . | . . . Squads Dispatched 6 | . 6 . Investigation 4 | . 4 . Extermination . | . . . Reinforcement 2 | . 2 . Assault . | . . . Garrison . | . . . Intercept . | . . . Searches Triggered . | . . . Construction Impeded . | . . . Haulers Reinforced . | . . . Active Scanning Responses . | . . . Cargo Convoy Interrupts . | . . . Stealth | -11 -10 -10 --------- Run | Yrd Mat Min Distress Signals 1 | . 1 . Communications Jammed . | . . . Distress Signals . | . . . Times Spotted 50 | . 37 13 Peak Tracking Total 9 | . 5 9 Tactical Retreats 3 | . 2 1 Traps | -11 -10 -10 ------- Run | Yrd Mat Min Traps Triggered 4 | . 4 . Indirectly . | . . . Trap Hack Attempts . | . . . Triggered . | . . . Disarmed . | . . . Reprogrammed . | . . . Reused . | . . . Traps Extracted . | . . . Installed . | . . . Triggered . | . . . Machines | -11 -10 -10 ---------- Run | Yrd Mat Min Machines Disabled 1 | . 1 . Max in Single Turn 1 | . 1 . Machines Repaired . | . . . Machines Dismantled . | . . . Machines Sabotaged . | . . . Overloaded Fab Kills . | . . . Hacking | -11 -10 -10 --------- Run | Yrd Mat Min Machines Accessed . | . . . Terminals . | . . . Fabricators . | . . . Repair Stations . | . . . Recycling Units . | . . . Scanalyzers . | . . . Garrison Access . | . . . Total Hacks . | . . . Successful . | . . . Failed . | . . . Catastrophic . | . . . Database Lockouts . | . . . Manual . | . . . Terminals . | . . . Fabricators . | . . . Repair Stations . | . . . Recycling Units . | . . . Scanalyzers . | . . . Garrison Access . | . . . Terminal Hacks . | . . . Fabricator Hacks . | . . . Repair Station Hacks . | . . . Recycling Unit Hacks . | . . . Scanalyzer . | . . . Garrison Access Hacks . | . . . Unauthorized Hacks . | . . . Terminals . | . . . Fabricators . | . . . Repair Stations . | . . . Recycling Units . | . . . Scanalyzers . | . . . Garrison Access . | . . . Data Cores Recovered . | . . . Used . | . . . Hacking Detections . | . . . Full Trace Events . | . . . Feedback Events . | . . . Feedback Blocked . | . . . Robot Schematics Acquired . | . . . Robots Built . | . . . Authchips . | . . . Time . | . . . Total Robot Build Rating . | . . . Part Schematics Acquired . | . . . Parts Built . | . . . Authchips . | . . . Time . | . . . Total Part Build Rating . | . . . Parts Repaired . | . . . Time . | . . . Parts Recycled . | . . . Recycled Matter . | . . . Retrieved Matter . | . . . Retrieved Components . | . . . Parts Scanalyzed . | . . . Part Schematics Acquired . | . . . Parts Damaged . | . . . Bothacking | -11 -10 -10 ------------ Run | Yrd Mat Min Used RIF Installer . | . . . Robots Hacked . | . . . Non-combat . | . . . Combat . | . . . Robot Hacks Applied . | . . . Relay Couplers Released . | . . . Fabnet Peak Effective % . | . . . Robots Rewired . | . . . Allies Hacked . | . . . Hacks Repelled . | . . . Allies | -11 -10 -10 -------- Run | Yrd Mat Min Total Allies . | . . . Largest Group . | . . . Highest-Rated Group . | . . . Highest-Rated Ally . | . . . Total Orders . | . . . Ally Attacks . | . . . Total Damage . | . . . Kills . | . . . Allies Corrupted . | . . . Allies Melted . | . . . Intel | -11 -10 -10 ------- Run | Yrd Mat Min Robot Analysis Total . | . . . Derelict Logs Recovered 1 | . . 1 Drone Launches . | . . . Drone Recoveries . | . . . Exploration | -11 -10 -10 ------------- Run | Yrd Mat Min Turns Passed 1381 | . 1110 271 Spaces Moved 657 | 1 542 114 Core . | . . . Treads 656 | . 542 114 Legs 1 | 1 . . Wheels . | . . . Hover . | . . . Flight . | . . . Fastest Speed 120 | 120 160 160 Average Speed 159 | 120 160 160 Slowest Speed 160 | 120 160 160 Overloaded Moves . | . . . Propulsion Burnouts . | . . . Robots Hopped . | . . . Cave-ins Triggered . | . . . Exploration Rate (%) 35 | 2 79 26 Regions Visited 2 Branch Regions 1 Pre-discovered Areas . | . . . Known Exits Taken . | . . . Unknown Exits Taken 2 | 1 1 . Scrap Searched . | . . . Spaces Dug . | . . . Terrain Destroyed . | . . . Melee . | . . . Projectile . | . . . AOE . | . . . Terrain Rammed . | . . . Walls Destroyed . | . . . Machines Disabled . | . . . Actions | -11 -10 -10 --------- Run | Yrd Mat Min Total 835 | . 679 156 Wait 64 | . 52 12 Move 655 | . 541 114 Hop . | . . . Pick Up 6 | . 5 1 Fast Attach 3 | . 3 . Attach 2 | . . 2 Detach . | . . . Swap 7 | . 7 . Drop 7 | . 7 . Fire 89 | . 64 25 Melee . | . . . Ram . | . . . Kick . | . . . Crush 2 | . . 2 Escape Stasis . | . . . Rewire . | . . . Trap . | . . . Miscellaneous . | . . . Route ------- -11/Scrapyard -10/Materials (discovered 3 exits: [*Mat x2] / [*Min]) -10/Mines (discovered 1 exit: [*Mat]) History --------- Turn | Location | Event 1 | -11/Scrapyard | Discovered new exit (range 0) 1 | -11/Scrapyard | Entered Materials 315 | -10/Materials | Build established: Mutant 354 | -10/Materials | Discovered new exit (range 15) 449 | -10/Materials | Discovered new exit (range 3) 690 | -10/Materials | Core integrity fell below 50% 718 | -10/Materials | Discovered new exit (range 16) 1111 | -10/Materials | Entered Mines 1129 | -10/Mines | Discovered new exit (range 9) 1130 | -10/Mines | Met a Derelict bent on vengeance 1306 | -10/Mines | Assembled infested the area 1380 | -10/Mines | Core integrity fell below 20% 1382 | -10/Mines | Destroyed by as-77577 with Assembled Blade Last Messages --------------- 01358_ as-70737 destroyed. 01360_ as-16436 destroyed. 01361_ Acquired 10 matter. 01363_ as-89702 destroyed. 01366_ as-48000 destroyed. 01368_ Lgt. Treads destroyed. 01368_ System corrupted by crushing effect (+2). 01370_ as-68272 knocked back. 01374_ Shield Generator destroyed. 01375_ as-68272 knocked back. 01377_ Lgt. Treads destroyed. 01378_ as-68272 knocked back. 01380_ Lgt. Cannon destroyed. 01380_ Ion Engine destroyed. 01380_ System corrupted by crushing effect (+5). 01380_ System corrupted by crushing effect (+2). 01381_ System corrupted: FCS attempts to trigger Lgt. Assault Rifle. 01381_ System corrupted: Lgt. Assault Rifle misfires. Map ----- +----------------------------------------------------+ | ?????????????????????????????????????????????????? | | ?????????????????????????????????????????????????? | | ?????????????????????????????????????????????????? | | ?????????????????????????????????????????????????? | | ??????????? ####?????????????????????????????????? | | ????????? ????????????????????????????????? | | ???????? ????????????????????????????????? | | ????????# ????????????????????????????????? | | ????????# ????????????????????????????????? | | ???????? ?????????????????????????????????? | | ????????? ?????????????????????????????????? | | ????????? ?????????????????????????????????? | | ?????????? ?????????????????????????????????? | | ?????????? ??????????????????????????????????? | | ####??????? ??????????????????????????????????? | | ##?????? ??????????????????????????????????? | | #??????? ????????????????#####?????????????? | | #??????? #???????????????## ##????????????? | | ##???????# #???????????????# ##???????????? | | ####????????# #??????????????## #???????????? | | #???????????# #?????????????## #???????????? | | #???????????# #?????????##### #????????????? | | ##??????????# #?????????# #?????????????? | | #??####????# #?????????#%## #?????????????? | | #?## ##???# #?????????#a### #?????????????? | | #### ##??# #?#####???#@#?### #?????????????? | | #?# %##?#=### ##??#a#???## #?????????????? | | #?# =###*## ####%###### ##????????????? | | ### < *=%%[! %%a ## #####????????? | | ==##### #????????? | | %##???# ####### #????????? | | #### ##????## ##????## ####### #????????? | | #??#####??????#####????## ##?????# #????????? | | #?????????????????????## #??????# #????????? | | ##????????????????????## ##??????# #????????? | | #?????????????????????# ##???????# #????????? | | ??????????????????????# ##???????# ????????? | | ??????????????????????## #???????###????????? | | ???????????????????????#### ##??????????????????? | | ??????????????????????????####???????????????????? | | ?????????????????????????????????????????????????? | | ?????????????????????????????????????????????????? | | ?????????????????????????????????????????????????? | | ?????????????????????????????????????????????????? | | ?????????????????????????????????????????????????? | | | | | | | | | | | +----------------------------------------------------+ Best States ------------- Heat Dissipation 25 Energy Generation 10 Energy Capacity 250 Matter Stores 300 Matter Capacity 300 Sight Range 16 Terrain Scan Density 10 Evasion (%) 40 Recoil Reduction 2 Item Schematics ----------------- None Robot Schematics ------------------ None Fabricated ------------ Nothing Alien Tech Used ----------------- None Achievements -------------- None Challenges ------------ None Game ------ Seed AlphaVisualBooster Manual? 0 Play Time 00:10:05 Cumulative 99.4 hours Start 2024.04.06 @ 22:41:26 End 2024.04.06 @ 22:49:29 Sessions 1 Manual Loads 0 Difficulty Rogue Special Mode None Game No. 146 Rogue 146 Adventurer 0 Explorer 0 Win Type - Total 1 Types 1/0/0/0/0/0/0/0/0 Lore% 43 Gallery% 47 Achievement% 41 Wizard Run 0 Options --------- Layout 2 ASCII 0 Keyboard 1 Movement Vi Keybinds 1 Fullscreen 1 Font 32/SmallcapsGlow Map View 50x44 Zoom Use 0% Tactical HUD 1 Map Filters NONE Filters NONE Steam 1 RUN: 9d08cae1-45fc-4a34-b32f-179e2da2b336